bitfinex/quotes_BTCUSD_20251201
["timestamp","ask_amount","ask_price","bid_price","bid_amount"]
[1764617266813,3.64325492,84909.0,84908.0,1.22371948]
[1764617267198,3.64325492,84909.0,84908.0,1.37111948]
[1764617269384,3.24325492,84909.0,84908.0,1.37111948]
[1764617270637,3.24325492,84909.0,84908.0,1.35247948]
[1764617270844,3.24325492,84909.0,84908.0,1.18459649]
[1764617271056,3.24325492,84909.0,84908.0,1.24711948]
[1764617272554,3.24325492,84909.0,84908.0,1.01855649]
[1764617272763,3.24325492,84909.0,84908.0,0.69555649]
[1764617272972,3.24325492,84909.0,84908.0,1.03719649]
[1764617273176,3.24325492,84909.0,84908.0,1.09971948]
[1764617273533,3.24325492,84909.0,84908.0,1.09671948]
[1764617273730,3.24225492,84909.0,84908.0,1.09071948]
[1764617274134,3.24325492,84909.0,84908.0,1.09471948]
[1764617274538,3.24325492,84909.0,84908.0,1.09671948]
[1764617276563,3.01499921,84909.0,84908.0,1.09671948]
[1764617281108,3.01499921,84909.0,84908.0,1.22071948]
[1764617281285,2.47140157,84909.0,84908.0,1.22071948]
[1764617281437,2.31250543,84909.0,84908.0,1.22071948]
[1764617282032,2.31250543,84909.0,84908.0,1.36811948]
[1764617282451,2.31150543,84909.0,84908.0,1.35911948]
[1764617282738,2.31250543,84909.0,84908.0,1.37111948]
[1764617283577,2.31150543,84909.0,84908.0,1.36211948]
[1764617283734,2.31250543,84909.0,84908.0,1.36811948]
[1764617284161,2.31250543,84909.0,84908.0,1.37111948]
[1764617285809,2.31250543,84909.0,84908.0,1.22847948]
[1764617286011,2.31250543,84909.0,84908.0,0.84295649]
[1764617286326,2.31250543,84909.0,84908.0,1.24711948]
[1764617289474,2.31250543,84909.0,84908.0,0.78300743]
[1764617289676,2.31250543,84909.0,84908.0,0.47864743]
[1764617289834,2.31250543,84909.0,84908.0,0.54117042]
[1764617290016,2.31250543,84909.0,84908.0,0.80164743]
[1764617290217,2.31250543,84909.0,84908.0,0.7632653]
[1764617290428,2.31250543,84909.0,84908.0,0.7446253]
[1764617290607,2.31150543,84909.0,84908.0,0.7542653]
[1764617290812,2.31150543,84909.0,84908.0,0.82078829]
[1764617291508,2.31150543,84909.0,84908.0,0.82378829]
[1764617291957,2.31150543,84909.0,84908.0,0.82078829]
[1764617292591,2.31150543,84909.0,84908.0,0.82278829]
[1764617293226,2.31150543,84909.0,84908.0,1.05833735]
[1764617294263,2.31150543,84909.0,84908.0,1.14301918]
[1764617294471,2.31150543,84909.0,84908.0,1.05833735]
[1764617295248,2.31150543,84909.0,84908.0,1.05233735]
[1764617295468,2.31150543,84909.0,84908.0,1.05733735]
[1764617295673,2.31150543,84909.0,84908.0,1.06033735]
[1764617296082,2.31150543,84909.0,84908.0,1.20773735]
[1764617296859,1.7803813,84909.0,84908.0,1.37019485]
[1764617297092,1.13914527,84909.0,84908.0,1.32673735]
[1764617297291,0.94583312,84909.0,84908.0,1.39006898]
[1764617297515,0.91046357,84909.0,84908.0,1.32373735]
[1764617297697,0.85593548,84909.0,84908.0,1.32373735]
[1764617297997,0.85593548,84909.0,84908.0,1.32673735]
[1764617298396,0.85593548,84909.0,84908.0,1.32773735]
[1764617298596,0.85593548,84909.0,84908.0,1.32373735]
[1764617298818,0.85593548,84909.0,84908.0,1.32673735]
[1764617299050,0.85593548,84909.0,84908.0,1.19009735]
[1764617299255,0.85593548,84909.0,84908.0,1.20873735]
[1764617301636,0.85593548,84909.0,84908.0,1.17864861]
[1764617301863,0.85593548,84909.0,84908.0,0.67581436]
[1764617302255,0.85593548,84909.0,84908.0,0.99281436]
[1764617302433,0.85593548,84909.0,84908.0,1.05233735]
[1764617302731,0.85593548,84909.0,84908.0,0.67481436]
[1764617302891,0.85593548,84909.0,84908.0,0.99281436]
[1764617303102,0.85593548,84909.0,84908.0,0.99581436]
[1764617303103,0.64065508,84909.0,84908.0,0.99581436]
[1764617303502,0.64065508,84909.0,84908.0,1.05833735]
[1764617303921,0.64065508,84909.0,84908.0,1.05533735]
[1764617304562,0.64065508,84909.0,84908.0,1.05733735]
[1764617311068,0.64065508,84909.0,84908.0,1.03869735]
[1764617311296,0.64065508,84909.0,84908.0,1.05733735]
[1764617313191,0.62149102,84909.0,84908.0,1.05733735]
[1764617313612,0.62149102,84909.0,84908.0,0.80314829]
[1764617313873,0.62149102,84909.0,84908.0,1.05733735]
[1764617314044,0.62149102,84909.0,84908.0,0.82178829]
[1764617314439,0.62149102,84909.0,84908.0,0.49878829]
[1764617315210,0.62149102,84909.0,84908.0,0.4362653]
[1764617315414,0.62149102,84909.0,84908.0,0.4332653]
[1764617315695,0.62149102,84909.0,84908.0,0.4146253]
[1764617315908,0.85703731,84909.0,84908.0,0.4146253]
[1764617316110,0.85703731,84909.0,84908.0,0.4332653]
[1764617316382,0.62149102,84909.0,84908.0,0.4352653]
[1764617316748,0.62149102,84909.0,84908.0,0.4332653]
[1764617317307,0.62149102,84909.0,84908.0,0.4342653]
[1764617317529,0.62149102,84909.0,84908.0,0.0312653]
[1764617317740,0.62149102,84909.0,84908.0,0.0322653]
[1764617318071,0.62149102,84909.0,84908.0,0.4322653]
[1764617319303,0.42956098,84909.0,84908.0,0.4312653]
[1764617319519,0.42956098,84909.0,84908.0,0.4322653]
[1764617320032,0.42956098,84909.0,84908.0,0.4312653]
[1764617320472,0.42956098,84909.0,84908.0,0.4322653]
[1764617320884,0.43056098,84909.0,84908.0,0.4312653]
[1764617321051,0.42956098,84909.0,84908.0,0.0312653]
[1764617321530,0.42956098,84909.0,84908.0,0.66681436]
[1764617322280,0.42956098,84909.0,84908.0,0.66781436]
[1764617322492,0.42956098,84909.0,84908.0,0.71888861]
[1764617322722,0.42956098,84909.0,84908.0,0.49478829]
[1764617322932,0.42956098,84909.0,84908.0,0.73033735]
[1764617323363,0.42956098,84909.0,84908.0,0.72933735]
[1764617323544,0.42956098,84909.0,84908.0,0.73033735]
[1764617324183,0.42956098,84909.0,84908.0,0.72933735]
[1764617325491,0.42956098,84909.0,84908.0,0.73033735]
[1764617326283,0.42956098,84909.0,84908.0,1.05333735]
[1764617328275,0.42956098,84909.0,84908.0,1.05233735]
[1764617328699,0.42956098,84909.0,84908.0,1.05333735]
[1764617333801,0.41039551,84909.0,84908.0,1.05333735]
[1764617334181,0.41039551,84909.0,84908.0,1.08872499]
[1764617334540,0.41039551,84909.0,84908.0,1.08772499]
[1764617334894,0.41039551,84909.0,84908.0,1.08972499]
[1764617335282,0.41039551,84909.0,84908.0,1.08772499]
[1764617335682,0.41039551,84909.0,84908.0,1.09172499]
[1764617336085,0.41039551,84909.0,84908.0,1.09072499]
[1764617336334,0.41039551,84909.0,84908.0,1.09572499]
[1764617336842,0.41039551,84909.0,84908.0,1.09072499]
[1764617337044,0.41039551,84909.0,84908.0,1.09572499]
[1764617337334,0.41039551,84909.0,84908.0,1.09272499]
[1764617337815,0.41039551,84909.0,84908.0,1.09572499]
[1764617338852,0.41039551,84909.0,84908.0,1.18268458]
[1764617339058,0.41039551,84909.0,84908.0,0.99781436]
[1764617339393,0.41039551,84909.0,84908.0,1.06033735]
[1764617339814,0.41039551,84909.0,84908.0,1.05533735]
[1764617340142,0.41039551,84909.0,84908.0,1.05933735]
[1764617340275,0.41039551,84909.0,84908.0,1.05233735]
[1764617340694,0.41039551,84909.0,84908.0,1.05933735]
[1764617341095,0.41039551,84909.0,84908.0,1.05633735]
[1764617341592,0.41039551,84909.0,84908.0,1.16493694]
[1764617341748,0.41039551,84909.0,84908.0,1.16093694]
[1764617342125,0.41039551,84909.0,84908.0,1.16193694]
[1764617342327,0.41039551,84909.0,84908.0,1.15793694]
[1764617342735,0.41039551,84909.0,84908.0,1.16193694]
[1764617342953,0.41039551,84909.0,84908.0,1.15793694]
[1764617343274,0.41039551,84909.0,84908.0,1.05633735]
[1764617343475,0.41039551,84909.0,84908.0,1.05933735]
[1764617343632,0.41039551,84909.0,84908.0,1.05533735]
[1764617345293,0.39123129,84909.0,84908.0,1.05933735]
[1764617346085,0.39123129,84909.0,84908.0,1.05533735]
[1764617346287,0.39123129,84909.0,84908.0,1.05233735]
[1764617346486,0.39123129,84909.0,84908.0,1.05433735]
[1764617347028,0.24806919,84909.0,84908.0,1.05333735]
[1764617347218,0.24806919,84909.0,84908.0,0.7366253]
[1764617347419,0.24783412,84909.0,84908.0,0.7572653]
[1764617347809,0.48338041,84909.0,84908.0,0.7572653]
[1764617348018,0.24783412,84909.0,84908.0,0.7572653]
[1764617348137,0.24783412,84909.0,84908.0,0.7552653]
[1764617348338,0.24783412,84909.0,84908.0,0.7542653]
[1764617348539,0.48338041,84909.0,84908.0,0.7542653]
[1764617349264,0.24783412,84909.0,84908.0,0.7542653]
[1764617349457,0.48338041,84909.0,84908.0,0.7542653]
[1764617349913,0.48338041,84909.0,84908.0,0.4146253]
[1764617350248,0.48338041,84909.0,84908.0,0.0312653]
[1764617350448,0.48338041,84909.0,84908.0,0.0322653]
[1764617351059,0.48338041,84909.0,84908.0,0.4312653]
[1764617351260,0.24783412,84909.0,84908.0,0.72933735]
[1764617351407,0.24783412,84909.0,84908.0,0.73033735]
[1764617352049,0.24883412,84909.0,84908.0,0.73033735]
[1764617352238,0.24783412,84909.0,84908.0,0.73033735]
[1764617352435,0.24783412,84909.0,84908.0,0.49378829]
[1764617352636,0.24783412,84909.0,84908.0,0.49478829]
[1764617352884,0.24783412,84909.0,84908.0,0.49578829]
[1764617353247,0.24783412,84909.0,84908.0,0.49478829]
[1764617353440,0.24783412,84909.0,84908.0,0.49578829]
[1764617353696,0.24783412,84909.0,84908.0,0.73133735]
[1764617354101,0.24783412,84909.0,84908.0,0.73033735]
[1764617355174,0.24783412,84909.0,84908.0,0.73133735]
[1764617355578,0.24783412,84909.0,84908.0,0.72933735]
[1764617355897,0.24783412,84909.0,84908.0,0.49678829]
[1764617356105,0.24783412,84909.0,84908.0,0.73133735]
[1764617356331,0.24783412,84909.0,84908.0,0.72933735]
[1764617356525,0.24783412,84909.0,84908.0,0.73197735]
[1764617356920,0.24783412,84909.0,84908.0,0.49642829]
[1764617357549,0.24783412,84909.0,84908.0,0.4319053]
[1764617357668,0.24783412,84909.0,84908.0,0.66645436]
[1764617357869,0.24783412,84909.0,84908.0,0.66745436]
[1764617359138,0.24783412,84909.0,84908.0,0.66845436]
[1764617359547,0.24783412,84909.0,84908.0,0.66745436]
[1764617359970,0.24783412,84909.0,84908.0,0.66945436]
[1764617360378,0.24783412,84909.0,84908.0,0.66745436]
[1764617360781,0.24783412,84909.0,84908.0,0.73197735]
[1764617361777,0.24783412,84909.0,84908.0,0.73097735]
[1764617362108,0.24783412,84909.0,84908.0,0.72897735]
[1764617362315,0.24783412,84909.0,84908.0,0.73197735]
[1764617362510,0.24783412,84909.0,84908.0,0.73097735]
[1764617363849,0.24783412,84909.0,84908.0,0.73197735]
[1764617364418,0.24783412,84909.0,84908.0,0.49642829]
[1764617364617,0.24783412,84909.0,84908.0,0.73197735]
[1764617365769,0.24783412,84909.0,84908.0,0.47778829]
[1764617366067,0.24783412,84909.0,84908.0,0.73197735]
[1764617366213,0.24783412,84909.0,84908.0,0.49642829]
[1764617366420,0.48338041,84909.0,84908.0,0.4152653]
[1764617366815,0.48338041,84909.0,84908.0,0.0339053]
[1764617367223,0.48338041,84909.0,84908.0,0.4339053]
[1764617367565,0.48338041,84909.0,84908.0,0.4329053]
[1764617367961,0.48338041,84909.0,84908.0,0.4319053]
[1764617368169,0.48338041,84909.0,84908.0,0.4309053]
[1764617368425,0.48338041,84909.0,84908.0,0.00281656]
[1764617368975,0.48338041,84909.0,84908.0,0.00081656]
[1764617369150,0.48338041,84909.0,84908.0,0.00181656]
[1764617369711,0.48338041,84909.0,84908.0,0.00081656]
[1764617369897,0.48338041,84909.0,84908.0,0.0132653]
[1764617370738,0.48538041,84909.0,84908.0,0.0132653]
[1764617371075,0.48338041,84909.0,84908.0,0.0122653]
[1764617371499,0.48538041,84909.0,84908.0,0.0132653]
[1764617371673,0.48538041,84909.0,84908.0,0.00181656]
[1764617371876,0.48538041,84909.0,84908.0,0.0122653]
[1764617372271,0.48538041,84909.0,84908.0,0.0132653]
[1764617372662,0.48538041,84909.0,84908.0,0.0122653]
[1764617372903,0.48538041,84909.0,84908.0,0.0132653]
[1764617373318,0.48538041,84909.0,84908.0,0.00181656]
[1764617373678,0.48538041,84909.0,84908.0,0.0132653]
[1764617373880,0.48538041,84909.0,84908.0,0.00181656]
[1764617375899,0.92360637,84909.0,84908.0,0.00181656]
[1764617376687,0.80838041,84909.0,84908.0,0.00181656]
[1764617376883,0.80838041,84909.0,84907.0,1e-08]
[1764617376884,0.55854906,84908.0,84907.0,1e-08]
[1764617378264,0.64471205,84908.0,84907.0,1e-08]
[1764617379758,0.55859345,84892.0,84891.0,1e-08]
[1764617380292,0.67600086,84892.0,84891.0,1e-08]
[1764617381084,0.68000086,84892.0,84891.0,1e-08]
[1764617381557,0.67600086,84892.0,84891.0,1e-08]
[1764617382390,0.55859345,84892.0,84891.0,1e-08]
[1764617382595,0.76377033,84892.0,84891.0,1e-08]
[1764617382792,0.76577033,84892.0,84891.0,1e-08]
[1764617382996,0.76377033,84892.0,84891.0,1e-08]
[1764617383223,0.76577033,84892.0,84891.0,1e-08]
[1764617383634,0.76377033,84892.0,84891.0,1e-08]
[1764617383934,0.78345033,84892.0,84891.0,1e-08]
[1764617384495,0.76477033,84892.0,84891.0,1e-08]
[1764617384812,0.78345033,84892.0,84891.0,1e-08]
[1764617389435,0.69568086,84892.0,84891.0,1e-08]
[1764617390011,0.67700086,84892.0,84891.0,1e-08]
[1764617390428,0.55959345,84892.0,84891.0,1e-08]
[1764617391817,0.55859345,84892.0,84891.0,1e-08]
[1764617392367,0.55959345,84892.0,84891.0,0.00200001]
[1764617392542,0.39145904,84892.0,84891.0,1e-08]
[1764617393088,0.39245904,84892.0,84891.0,0.00200001]
[1764617399926,0.39245904,84892.0,84891.0,0.0023875]
[1764617400357,0.48117868,84892.0,84891.0,1e-08]
[1764617400562,0.48975485,84892.0,84891.0,1e-08]
[1764617400757,0.48117868,84892.0,84891.0,1e-08]
[1764617400956,0.48975624,84892.0,84891.0,1e-08]
[1764617401188,0.48875624,84892.0,84891.0,1e-08]
[1764617401536,0.48975624,84892.0,84891.0,1e-08]
[1764617402004,0.94612314,84892.0,84891.0,1e-08]
[1764617402400,0.94612314,84892.0,84860.0,0.0002]
[1764617402401,0.23567952,84861.0,84860.0,1e-08]
[1764617402687,0.58342584,84861.0,84860.0,1e-08]
[1764617403062,0.70083325,84861.0,84860.0,1e-08]
[1764617404543,0.55867952,84861.0,84860.0,1e-08]
[1764617404693,0.55967952,84861.0,84860.0,1e-08]
[1764617405521,0.55867952,84861.0,84860.0,1e-08]
[1764617405925,0.55967952,84861.0,84860.0,1e-08]
[1764617406807,0.67708693,84861.0,84860.0,1e-08]
[1764617407037,0.79231289,84861.0,84860.0,1e-08]
[1764617407436,0.79131289,84861.0,84860.0,1e-08]
[1764617407631,0.79231289,84861.0,84860.0,1e-08]
[1764617408179,0.80999289,84861.0,84860.0,1e-08]
[1764617408317,0.90741327,84861.0,84860.0,1e-08]
[1764617408524,0.96134464,84861.0,84860.0,1e-08]
[1764617409135,0.96034464,84861.0,84860.0,1e-08]
[1764617409337,0.96134464,84861.0,84860.0,1e-08]
[1764617410187,0.96234464,84861.0,84860.0,1e-08]
[1764617410590,0.96134464,84861.0,84860.0,1e-08]
[1764617410807,0.96334464,84861.0,84860.0,1e-08]
[1764617413184,0.84811868,84861.0,84860.0,1e-08]
[1764617413341,0.82279082,84861.0,84860.0,1e-08]
[1764617413544,0.81261714,84861.0,84860.0,1e-08]
[1764617413749,1.06184314,84861.0,84860.0,1e-08]
[1764617413968,3.09352289,84861.0,84860.0,1e-08]
[1764617414167,3.1767745,84861.0,84860.0,1e-08]
[1764617414970,3.1757745,84861.0,84860.0,1e-08]
[1764617415173,3.1737745,84861.0,84860.0,1e-08]
[1764617415373,3.1737745,84861.0,84800.0,0.0002]
[1764617415374,0.62126084,84840.0,84800.0,0.0002]
[1764617415547,0.76373633,84840.0,84800.0,0.0002]
[1764617415959,0.55879066,84821.0,84800.0,0.0002]
[1764617417591,0.55979066,84821.0,84800.0,0.0002]
[1764617418370,0.55979066,84821.0,84816.0,0.01144874]
[1764617419043,0.55979066,84821.0,84800.0,0.0002]
[1764617421055,0.40730614,84821.0,84800.0,0.0002]
[1764617421595,0.40730614,84821.0,84820.0,0.00082199]
[1764617422518,0.4076937,84821.0,84820.0,0.00082199]
[1764617423743,0.4066937,84821.0,84820.0,0.00082199]
[1764617424123,0.4076937,84821.0,84820.0,0.00082199]
[1764617425048,0.4066937,84821.0,84820.0,0.00082199]
[1764617425748,0.4076937,84821.0,84820.0,0.00082199]
[1764617427968,0.4066937,84821.0,84820.0,0.00082199]
[1764617428312,0.4076937,84821.0,84820.0,0.00082199]
[1764617428489,0.4253737,84821.0,84820.0,1e-08]
[1764617428673,0.43309219,84821.0,84820.0,1e-08]
[1764617428875,0.5310702,84821.0,84820.0,1e-08]
[1764617429106,0.5310702,84821.0,84800.0,0.0002]
[1764617429107,0.5310702,84821.0,84800.0,1e-08]
[1764617429108,0.62136926,84801.0,84800.0,1e-08]
[1764617429277,0.64776775,84801.0,84800.0,1e-08]
[1764617429455,0.62908775,84801.0,84800.0,1e-08]
[1764617429679,0.68323555,84801.0,84800.0,1e-08]
[1764617429857,0.91586892,84801.0,84800.0,1e-08]
[1764617430103,0.60203256,84801.0,84800.0,1e-08]
[1764617430278,0.64776318,84801.0,84800.0,1e-08]
[1764617430477,0.57835932,84801.0,84800.0,1e-08]
[1764617430682,0.59703932,84801.0,84800.0,1e-08]
[1764617430893,0.59703942,84801.0,84800.0,1e-08]
[1764617431094,0.70655136,84801.0,84800.0,1e-08]
[1764617431293,0.59903928,84801.0,84800.0,1e-08]
[1764617431542,0.59703928,84801.0,84800.0,1e-08]
[1764617431755,0.5716454,84801.0,84800.0,1e-08]
[1764617432164,0.55984627,84801.0,84800.0,1e-08]
[1764617432569,0.23684627,84801.0,84800.0,1e-08]
[1764617433615,0.23584627,84801.0,84800.0,1e-08]
[1764617434042,0.23684627,84801.0,84800.0,1e-08]
[1764617434383,0.23584627,84801.0,84800.0,1e-08]
[1764617434607,0.23684627,84801.0,84800.0,0.00100001]
[1764617435021,0.23684627,84801.0,84800.0,1e-08]
[1764617435216,0.23684627,84801.0,84800.0,0.00100001]
[1764617436170,0.55984627,84801.0,84800.0,0.00100001]
[1764617436369,0.55984627,84801.0,84800.0,1e-08]
[1764617436588,0.56757042,84801.0,84800.0,1e-08]
[1764617436967,0.21953519,84779.0,84778.0,0.01144874]
[1764617437170,0.23591582,84776.0,84775.0,0.03016874]
[1764617438217,0.23630266,84776.0,84775.0,0.03016874]
[1764617438622,0.23630266,84776.0,84775.0,0.03098777]
[1764617439765,0.23630266,84776.0,84775.0,0.03198777]
[1764617439950,0.00038684,84776.0,84775.0,0.03198777]
[1764617440339,0.00138684,84776.0,84775.0,0.03198777]
[1764617440517,0.23730266,84776.0,84775.0,0.03198777]
[1764617442060,0.23730266,84776.0,84775.0,0.43198777]
[1764617442276,0.00138684,84776.0,84775.0,0.43198777]
[1764617442526,0.23730266,84776.0,84775.0,0.43198777]
[1764617442722,0.00138684,84776.0,84775.0,0.43198777]
[1764617443057,0.00138684,84776.0,84775.0,0.66790637]
[1764617443280,0.00138684,84776.0,84775.0,0.43198777]
[1764617443499,0.00138684,84776.0,84775.0,0.03198777]
[1764617443846,0.23730266,84776.0,84775.0,0.03198777]
[1764617449045,0.23730266,84776.0,84775.0,0.02053903]
[1764617449585,0.23730266,84776.0,84775.0,0.03198777]
[1764617449807,0.23730266,84776.0,84775.0,0.02053903]
[1764617450300,0.23730266,84776.0,84775.0,0.03198777]
[1764617450501,0.23730266,84776.0,84775.0,0.02053903]
[1764617452050,0.23730266,84776.0,84775.0,0.01953903]
[1764617452254,0.23730266,84776.0,84775.0,0.00181903]
[1764617452453,0.23630266,84776.0,84775.0,0.00181903]
[1764617452820,0.23730266,84776.0,84775.0,0.00181903]
[1764617453171,0.23730266,84776.0,84775.0,0.00081903]
[1764617453578,0.23630266,84776.0,84775.0,0.00081903]
[1764617453919,0.23730266,84776.0,84775.0,0.00081903]
[1764617455136,0.23730266,84776.0,84775.0,0.01226777]
[1764617455680,0.23630266,84776.0,84775.0,0.01226777]
[1764617456085,0.23730266,84776.0,84775.0,0.01226777]
[1764617456281,0.23730266,84776.0,84775.0,0.00081903]
[1764617456913,0.23630266,84776.0,84775.0,0.00081903]
[1764617457096,0.23630266,84776.0,84775.0,0.00181903]
[1764617457439,0.23730266,84776.0,84775.0,0.01326777]
[1764617457642,0.23630266,84776.0,84775.0,0.01326777]
[1764617458018,0.23630266,84776.0,84775.0,0.00181903]
[1764617458201,0.23630266,84776.0,84775.0,0.00081903]
[1764617458557,0.23630266,84776.0,84775.0,0.00181903]
[1764617458905,0.23730266,84776.0,84775.0,0.01326777]
[1764617459098,0.23630266,84776.0,84775.0,0.01226777]
[1764617459305,0.23730266,84776.0,84775.0,0.01326777]
[1764617459507,0.23730266,84776.0,84775.0,0.00181903]
[1764617459715,0.23730266,84776.0,84775.0,0.01326777]
[1764617459912,0.23730266,84776.0,84775.0,0.00181903]
[1764617460515,0.23730266,84776.0,84775.0,0.01326777]
[1764617461194,0.23730266,84776.0,84775.0,0.00181903]
[1764617461977,0.23730266,84776.0,84775.0,0.23773763]
[1764617461978,0.00138684,84776.0,84775.0,0.23773763]
[1764617462155,0.00138684,84776.0,84775.0,0.31170936]
[1764617462514,0.00138684,84776.0,84775.0,0.71170936]
[1764617462689,0.00038684,84776.0,84775.0,0.71070936]
[1764617463072,0.00138684,84776.0,84775.0,0.71170936]
[1764617463275,0.00038684,84776.0,84775.0,0.71170936]
[1764617463474,0.00138684,84776.0,84775.0,1.03470936]
[1764617464122,0.00029712,84776.0,84775.0,1.03470936]
[1764617464301,0.00029712,84776.0,84775.0,1.13930895]
[1764617464502,0.00029712,84776.0,84775.0,1.12074489]
[1764617464724,0.00029712,84776.0,84775.0,1.12174489]
[1764617464948,0.08383813,84867.0,84775.0,1.12174489]
[1764617464950,0.01178883,84826.0,84814.0,0.0117905]
[1764617465195,8.206e-05,84826.0,84825.0,0.12885615]
[1764617465392,8.206e-05,84826.0,84825.0,0.14757615]
[1764617465753,8.206e-05,84826.0,84825.0,0.21009914]
[1764617466344,0.00108206,84826.0,84825.0,0.61409914]
[1764617466694,0.00108206,84826.0,84825.0,0.55157615]
[1764617467800,0.00108206,84826.0,84825.0,0.55257615]
[1764617468014,8.206e-05,84826.0,84825.0,0.54857615]
[1764617468249,0.00108206,84826.0,84825.0,0.55257615]
[1764617468679,0.00108206,84826.0,84825.0,0.02372]
[1764617469114,0.00108206,84826.0,84825.0,0.006]
[1764617469455,0.00108206,84826.0,84825.0,0.01744874]
[1764617469887,0.00108206,84826.0,84825.0,0.006]
[1764617470406,0.00108206,84826.0,84825.0,0.005]
[1764617470818,8.206e-05,84826.0,84825.0,0.01244874]
[1764617470957,8.206e-05,84826.0,84825.0,0.001]
[1764617471160,8.206e-05,84826.0,84825.0,0.01644874]
[1764617471161,0.00108206,84826.0,84825.0,0.01644874]
[1764617471365,0.00108206,84826.0,84825.0,0.39697173]
[1764617471366,8.206e-05,84826.0,84825.0,0.39697173]
[1764617471583,0.01178772,84870.0,84825.0,0.39697173]
[1764617471584,0.44139669,84860.0,84833.0,0.06252299]
[1764617471785,0.01178592,84847.0,84844.0,0.01144874]
[1764617472065,0.01178592,84847.0,84834.0,0.25447448]
[1764617472066,0.23575175,84835.0,84834.0,0.4]
[1764617472316,0.23575175,84835.0,84834.0,0.43016874]
[1764617472731,0.0117873,84837.0,84834.0,0.41872]
[1764617472933,0.24751827,84843.0,84836.0,0.01178744]
[1764617473131,0.24751827,84843.0,84842.0,0.12885615]
[1764617473132,0.24751791,84843.0,84842.0,0.12885615]
[1764617473962,0.01178647,84843.0,84842.0,0.12885615]
[1764617474566,0.01178619,84845.0,84842.0,0.12985615]
[1764617474788,0.0117855,84850.0,84845.0,0.01178619]
[1764617474958,0.01178522,84852.0,84850.0,0.01144874]
[1764617475155,0.01178439,84858.0,84857.0,0.01144874]
[1764617475354,0.01178439,84858.0,84857.0,0.03016874]
[1764617475579,0.00011678,84860.0,84857.0,0.01872]
[1764617475794,0.00011678,84860.0,84859.0,0.12885615]
[1764617476372,0.00011678,84860.0,84859.0,0.12785615]
[1764617476554,0.00011678,84860.0,84859.0,0.12885441]
[1764617476943,0.00011678,84860.0,84859.0,0.11740741]
[1764617477194,0.00011678,84860.0,84859.0,0.51740741]
[1764617477701,0.00011678,84860.0,84859.0,0.13712741]
[1764617477912,0.00011678,84860.0,84859.0,0.14012741]
[1764617478114,0.00083658,84860.0,84859.0,0.13912741]
[1764617478253,0.00083658,84860.0,84859.0,0.13612741]
[1764617478458,0.00083658,84860.0,84859.0,0.003]
[1764617480323,0.23651888,84860.0,84859.0,0.003]
[1764617484072,0.23651888,84860.0,84859.0,0.014447]
[1764617484438,0.23651888,84860.0,84859.0,0.003]
[1764617484839,0.23651888,84860.0,84859.0,0.014447]
[1764617487173,0.23651888,84860.0,84859.0,0.003]
[1764617488015,0.62808168,84860.0,84859.0,0.003]
[1764617488221,0.74548909,84860.0,84859.0,0.003]
[1764617488598,0.67692629,84860.0,84859.0,0.003]
[1764617489017,0.67692629,84860.0,84859.0,0.001]
[1764617489219,0.23574619,84837.0,84836.0,0.01872]
[1764617490069,0.2358129,84813.0,84803.0,0.24763101]
[1764617490274,0.2358129,84813.0,84812.0,0.14757441]
[1764617490700,0.23581012,84814.0,84812.0,0.53612741]
[1764617490902,0.23581012,84814.0,84813.0,0.011447]
[1764617491241,0.01179036,84815.0,84813.0,0.01152906]
[1764617491539,0.01179036,84815.0,84814.0,0.011447]
[1764617492447,0.23579728,84819.0,84813.0,8.206e-05]
[1764617492448,0.01178703,84839.0,84825.0,0.01178897]
[1764617492634,0.01178703,84839.0,84829.0,1.14067316]
[1764617492635,0.011788,84832.0,84829.0,1.14067316]
[1764617492848,0.011788,84832.0,84831.0,0.011447]
[1764617493054,0.2475398,84835.0,84830.0,0.03050828]
[1764617493257,0.0117873,84837.0,84832.0,0.011788]
[1764617493457,0.24752831,84839.0,84834.0,0.01178772]
[1764617493681,0.24752831,84839.0,84836.0,0.011447]
[1764617493682,0.24753407,84837.0,84836.0,0.011447]
[1764617494477,0.0117873,84837.0,84836.0,0.011447]
[1764617495104,0.0117873,84837.0,84836.0,0.014447]
[1764617495528,0.23573882,84840.0,84836.0,0.003]
[1764617495732,0.23573882,84840.0,84839.0,0.011447]
[1764617496160,0.23573882,84840.0,84839.0,0.411447]
[1764617496703,0.01178619,84845.0,84839.0,0.4]
[1764617496854,0.01178619,84845.0,84844.0,0.12885441]
[1764617497200,0.24750322,84848.0,84844.0,0.12885441]
[1764617497201,0.01178564,84849.0,84845.0,0.011447]
[1764617497504,0.23571037,84850.0,84845.0,0.011447]
[1764617497638,0.24749587,84850.0,84845.0,0.24717096]
[1764617498616,0.23569948,84854.0,84845.0,0.24717096]
[1764617498617,0.01178425,84859.0,84845.0,0.24717096]
[1764617498819,0.23567567,84863.0,84845.0,0.30969395]
[1764617499034,0.01178369,84863.0,84845.0,0.30969395]
[1764617499252,0.011783,84868.0,84845.0,0.63269395]
[1764617499253,0.01178328,84866.0,84845.0,0.63269395]
[1764617499468,0.01178342,84865.0,84845.0,0.63269395]
[1764617499791,0.23567226,84864.0,84845.0,1.03369395]
[1764617499943,0.01178439,84858.0,84845.0,1.03469395]
[1764617500143,0.01178439,84858.0,84845.0,1.03269395]
[1764617500345,0.24746438,84861.0,84845.0,1.03269395]
[1764617500547,0.00126179,84846.0,84845.0,1.03969395]
[1764617506463,0.00126179,84846.0,84845.0,1.05837395]
[1764617509410,0.00126179,84846.0,84845.0,0.407]
[1764617509411,0.23698297,84846.0,84845.0,0.407]
[1764617509657,0.23698297,84846.0,84845.0,0.437127]
[1764617510928,0.00126179,84846.0,84845.0,0.437127]
[1764617512771,0.00126179,84846.0,84845.0,0.037127]
[1764617513182,0.00126179,84846.0,84845.0,0.437127]
[1764617516509,0.23698297,84846.0,84845.0,0.037127]
[1764617516723,0.00126179,84846.0,84845.0,0.037127]
[1764617516920,0.00126179,84846.0,84845.0,0.437127]
[1764617516921,0.23698297,84846.0,84845.0,0.437127]
[1764617517124,0.00126179,84846.0,84845.0,0.437127]
[1764617517354,0.00126179,84846.0,84845.0,0.67285096]
[1764617517877,0.00126179,84846.0,84845.0,0.437127]
[1764617518138,0.23698297,84846.0,84845.0,0.437127]
[1764617520481,0.23698297,84846.0,84845.0,0.418447]
[1764617520660,0.23698297,84846.0,84845.0,0.437127]
[1764617520916,0.23698297,84846.0,84845.0,0.418447]
[1764617521108,0.23698297,84846.0,84810.0,0.00999999]
[1764617521109,0.23698297,84846.0,84803.0,0.01179203]
[1764617521110,0.01178953,84821.0,84803.0,0.01179203]
[1764617521287,0.23580456,84816.0,84815.0,0.01868]
[1764617521640,0.23580456,84816.0,84812.0,0.11748947]
[1764617521641,0.2475977,84815.0,84812.0,8.206e-05]
[1764617521862,0.2358129,84813.0,84812.0,8.206e-05]
[1764617522204,0.2358129,84813.0,84812.0,0.00108206]
[1764617522407,0.2358129,84813.0,84812.0,0.01352906]
[1764617522625,0.2358129,84813.0,84812.0,0.01252906]
[1764617523021,0.2358129,84813.0,84812.0,0.01352906]